Cogmind - Beta 13 X1 @@@ ROGUE MODE // 2023.06.29 @ 20:30:54 Player: WayneKnight Result: Destroyed by DAS Turret with DAS Cannon Performance ------------- Evolutions (0) 0 Regions Visited (3) 600 Robots Destroyed (10) 50 Value Destroyed (277) 277 Prototype IDs (3) 60 Alien Tech Used (0) 0 Bonus (-460) -460 TOTAL SCORE: 527 Bonus ------- Follower Combat Kills 120 Friendly Fire -580 Cogmind --------- Core Integrity 0/250 Matter 300/300 Energy 265/265 System Corruption 0% Temperature Cool (0) Movement Walking (120) Location -10/Exiles Parts ------- > --- POWER (1) -------- Improved Ion Engine > --- PROPULSION (2) --- Advanced Myomer Leg Advanced Myomer Leg > --- UTILITY (2) ------ High-capacity Storage Unit Hardened Light Armor Plating > --- WEAPON (2) ------- Assault Rifle Assault Rifle > --- INVENTORY (20) --- Large Matter Pod (130) Experimental Targeting Computer Core Shielding Weapon Shielding Hardened Light Armor Plating Hardened Light Armor Plating EM Pulse Gun Mini Grenade Launcher Mini Grenade Launcher Peak State ------------ > --- POWER ------------ Improved Ion Engine > --- PROPULSION ------- Advanced Myomer Leg Advanced Myomer Leg > --- UTILITY ---------- Humpback > --- WEAPON ----------- Assault Rifle Assault Rifle > --- INVENTORY -------- Compact Wheel High-capacity Storage Unit Large Matter Pod Experimental Targeting Computer Core Shielding Weapon Shielding Hardened Light Armor Plating Hardened Light Armor Plating Hardened Light Armor Plating EM Pulse Gun Mini Grenade Launcher Mini Grenade Launcher [Rating: 24] Favorites ----------- Power Improved Ion Engine Engine Improved Ion Engine Propulsion Light Treads Treads Light Treads Leg Advanced Myomer Leg Utility Large Storage Unit Storage Large Storage Unit Protection Hardened Light Armor Plating Weapon Assault Rifle Energy Gun Small Laser Ballistic Gun Assault Rifle Launcher Mini Grenade Launcher Build | -11 -10 -10 -10 ------- Run | Jun Mat Min Exi Slots Evolved . | . . . . Power . | . . . . Propulsion . | . . . . Utility . | . . . . Weapon . | . . . . Parts Attached 24 | 2 10 . 12 Power 3 | . 2 . 1 Engine 3 | . 2 . 1 Core . | . . . . Reactor . | . . . . Propulsion 5 | 2 . . 3 Treads 2 | 2 . . . Leg 3 | . . . 3 Wheel . | . . . . Hover . | . . . . Flight . | . . . . Utility 8 | . 5 . 3 Device . | . . . . Storage 4 | . 2 . 2 Processor . | . . . . Hackware . | . . . . Protection 4 | . 3 . 1 Artifact . | . . . . Weapon 8 | . 3 . 5 Energy Gun . | . . . . Energy Cannon . | . . . . Ballistic Gun 7 | . 3 . 4 Ballistic Cannon . | . . . . Launcher 1 | . . . 1 Special Weapon . | . . . . Impact Weapon . | . . . . Slashing Weapon . | . . . . Piercing Weapon . | . . . . Special Melee Weapon . | . . . . Unidentified Prototypes 1 | . . . 1 Parts Lost 7 | . . . 7 Power 1 | . . . 1 Propulsion 3 | . . . 3 Utility . | . . . . Weapon 3 | . . . 3 Highest Loss Streak 5 | . . . 5 To Critical Strikes 7 | . . . 7 Average Slot Usage (%) 94 | . 98 100 86 Engine 13 | . 14 14 13 Treads 26 | . 28 28 23 Storage 14 | . 14 14 14 Protection 9 | . 12 14 4 Ballistic Gun 27 | . 25 28 28 Naked Turns . | . . . . Heaviest Build 211 | 12 52 36 211 Greatest Support 60 | 40 40 40 60 Greatest Overweight (x) 70 | . 1 . 70 Average Overweight (x) . | . . . 1 Largest Inventory Capacity 35 | 8 20 15 35 Average Capacity 20 | 8 16 15 28 Most Carried 19 | 6 15 15 19 Average Carried 13 | 6 10 15 15 Final Capacity 20 | 8 15 15 20 Final Carried 15 | 6 15 15 9 Class Distribution -------------------- 77% | Mutant 22% | Hauler-Mutant Dominant Class ---------------- Mutant | -10/Materials Mutant | -10/Mines Hauler-Mutant | -10/Exiles Resources | -11 -10 -10 -10 ----------- Run | Jun Mat Min Exi Matter Collected 725 | 200 160 32 333 Remotely . | . . . . Salvage Created 456 | . 319 . 137 Parts 22 | . 19 . 3 Haulers Intercepted . | . . . . Recyclers Shooed . | . . . . Parts Field Recycled . | . . . . Retrieved Matter . | . . . . Parts Self-Destructed . | . . . . Prevented . | . . . . Kills | -11 -10 -10 -10 ------- Run | Jun Mat Min Exi Combat Hostiles Destroyed 13 | . 8 . 5 Guns 9 | . 8 . 1 AOE 4 | . . . 4 Classes Destroyed 4 | . 3 . 1 Watcher 1 | . 1 . . Swarmer 2 | . 2 . . Grunt 6 | . 6 . . Assembled 7 | . . . 7 Best Kill Streak 4 | . 4 . 4 Combat Bots Only 4 | . 4 . 4 Max Kills in Single Turn 4 | . 1 . 4 Gunslinging . | . . . . Exploded 4 | . . . 4 Melee . | . . . . Uniques/NPCs Destroyed 1 | . . . 1 8R-AWN (-10/Exiles) Combat | -11 -10 -10 -10 -------- Run | Jun Mat Min Exi Damage Taken 1556 | . 376 11 1169 Core 276 | . 47 . 229 Absorbed by Shields . | . . . . Redirected to Shielding 9 | . 9 . . Core Remaining (%) 100 | 100 . . . Volleys Fired 75 | . 34 1 40 Largest 2 | . 2 2 2 Hottest 60 | . 60 40 40 Shots Fired 148 | . 68 2 78 Gun 146 | . 68 2 76 Cannon . | . . . . Launcher 2 | . . . 2 Special . | . . . . Kinetic 144 | . 66 2 76 Thermal 2 | . 2 . . Explosive 2 | . . . 2 Electromagnetic . | . . . . Robot Hit Streak 16 | . 16 3 10 Robot Miss Streak 3 | . 3 . 2 Penetration Max . | . . . . Secondary Targets . | . . . . Shots Hit Robots 108 | . 49 2 57 Core Hits 50 | . 23 1 26 Critical Kills . | . . . . Critical Parts Destroyed . | . . . . Critical Strikes 1 | . . . 1 Destroy 1 | . . . 1 Melee Attacks . | . . . . Impact . | . . . . Slashing . | . . . . Piercing . | . . . . Sneak Attacks . | . . . . Combat Hostiles . | . . . . Follow-up Attacks . | . . . . Damage Inflicted 1593 | . 402 25 1166 Guns 1144 | . 402 25 717 Cannons . | . . . . Explosions 449 | . . . 449 Melee . | . . . . Ramming . | . . . . Kinetic 1121 | . 379 25 717 Thermal 23 | . 23 . . Explosive 449 | . . . 449 Electromagnetic . | . . . . Impact . | . . . . Slashing . | . . . . Piercing . | . . . . Highest Corruption . | . . . . Average Corruption . | . . . . Corruption Purged . | . . . . Corruption Blocked . | . . . . Overload Shots . | . . . . Overflow Damage 9 | . . . 9 Projectiles . | . . . . Explosions 9 | . . . 9 Melee . | . . . . Knockbacks . | . . . . Impact . | . . . . Kinetic . | . . . . Secondary . | . . . . Self-Inflicted Damage . | . . . . Shots . | . . . . Rammed . | . . . . Targets Rammed . | . . . . Kicked . | . . . . Crushed . | . . . . Highest Temperature 24 | . 24 5 . Average Temperature 10 | . 10 4 . Received Heat Transfer 180 | . 174 6 . Siege Activations . | . . . . Robots Corrupted . | . . . . Combat Hostiles . | . . . . Parts Fried . | . . . . Impact Corruptions . | . . . . Robots Melted . | . . . . Combat Hostiles . | . . . . Parts Melted . | . . . . Heat Transferred 50 | . 50 . . Parts Sabotaged . | . . . . Parts Stolen . | . . . . Parts Stripped . | . . . . Power Chain Reactions . | . . . . Missiles Intercepted . | . . . . Alert | -11 -10 -10 -10 ------- Run | Jun Mat Min Exi Peak Influence 209 | . 209 80 . Initial 9 | . . 9 . Average 39 | . 51 19 . Maximum Alert Level 1 | . 1 . . Low Security (%) 95 | 100 93 100 . Level 1 4 | . 6 . . Level 2 . | . . . . Level 3 . | . . . . Level 4 . | . . . . Level 5 . | . . . . High Security . | . . . . Max Security . | . . . . Squads Dispatched 1 | . 1 . . Investigation . | . . . . Extermination . | . . . . Reinforcement 1 | . 1 . . Assault . | . . . . Garrison . | . . . . Intercept . | . . . . Searches Triggered . | . . . . Construction Impeded . | . . . . Haulers Reinforced . | . . . . Active Scanning Responses . | . . . . Cargo Convoy Interrupts . | . . . . Stealth | -11 -10 -10 -10 --------- Run | Jun Mat Min Exi Distress Signals . | . . . . Communications Jammed . | . . . . Distress Signals . | . . . . Times Spotted 23 | . 14 3 6 Peak Tracking Total 8 | . 5 2 8 Tactical Retreats 2 | . . . 2 Traps | -11 -10 -10 -10 ------- Run | Jun Mat Min Exi Traps Triggered 2 | . 2 . . Indirectly . | . . . . Trap Hack Attempts . | . . . . Triggered . | . . . . Disarmed . | . . . . Reprogrammed . | . . . . Reused . | . . . . Traps Extracted . | . . . . Installed . | . . . . Triggered . | . . . . Machines | -11 -10 -10 -10 ---------- Run | Jun Mat Min Exi Machines Disabled 4 | . . 1 3 Max in Single Turn 3 | . . . 3 Machines Repaired . | . . . . Machines Sabotaged . | . . . . Overloaded Fab Kills . | . . . . Hacking | -11 -10 -10 -10 --------- Run | Jun Mat Min Exi Machines Accessed 7 | . 6 . 1 Terminals 5 | . 5 . . Fabricators . | . . . . Repair Stations . | . . . . Recycling Units 1 | . 1 . . Scanalyzers . | . . . . Garrison Access . | . . . . Total Hacks 24 | . 23 . 1 Successful 13 | . 12 . 1 Failed 10 | . 10 . . Catastrophic . | . . . . Database Lockouts 1 | . 1 . . Manual 14 | . 14 . . Terminals 22 | . 22 . . Fabricators . | . . . . Repair Stations . | . . . . Recycling Units 1 | . 1 . . Scanalyzers . | . . . . Garrison Access . | . . . . Terminal Hacks 7 | . 6 . 1 Record 1 | . . . 1 Robot Analysis 2 | . 2 . . Prototype ID Bank 2 | . 2 . . Locate Traps 2 | . 2 . . Fabricator Hacks . | . . . . Repair Station Hacks . | . . . . Recycling Unit Hacks 1 | . 1 . . Report Inventory 1 | . 1 . . Scanalyzer . | . . . . Garrison Access Hacks . | . . . . Unauthorized Hacks 5 | . 5 . . Terminals 5 | . 5 . . Track 2 | . 2 . . Botnet 3 | . 3 . . Fabricators . | . . . . Repair Stations . | . . . . Recycling Units . | . . . . Scanalyzers . | . . . . Garrison Access . | . . . . Data Cores Recovered . | . . . . Used . | . . . . Hacking Detections 5 | . 5 . . Full Trace Events . | . . . . Feedback Events . | . . . . Feedback Blocked . | . . . . Robot Schematics Acquired . | . . . . Robots Built . | . . . . Authchips . | . . . . Time . | . . . . Total Robot Build Rating . | . . . . Part Schematics Acquired . | . . . . Parts Built . | . . . . Authchips . | . . . . Time . | . . . . Total Part Build Rating . | . . . . Parts Repaired . | . . . . Time . | . . . . Parts Recycled . | . . . . Recycled Matter . | . . . . Retrieved Matter . | . . . . Retrieved Components . | . . . . Parts Scanalyzed . | . . . . Part Schematics Acquired . | . . . . Parts Damaged . | . . . . Bothacking | -11 -10 -10 -10 ------------ Run | Jun Mat Min Exi Used RIF Installer . | . . . . Robots Hacked . | . . . . Non-combat . | . . . . Combat . | . . . . Robot Hacks Applied . | . . . . Relay Couplers Released . | . . . . Fabnet Peak Effective % . | . . . . Robots Rewired . | . . . . Allies Hacked . | . . . . Hacks Repelled . | . . . . Allies | -11 -10 -10 -10 -------- Run | Jun Mat Min Exi Total Allies 2 | . . 2 . Largest Group 2 | . . 2 1 Highest-Rated Group 42 | . . 42 31 Highest-Rated Ally 31 | . . 31 31 Total Orders . | . . . . Ally Attacks 13 | . . 13 . Total Damage 248 | . . 248 . Kills 4 | . . 4 . Allies Corrupted . | . . . . Allies Melted . | . . . . Intel | -11 -10 -10 -10 ------- Run | Jun Mat Min Exi Robot Analysis Total 2 | . 2 . . Derelict Logs Recovered 2 | . . 2 . Drone Launches . | . . . . Drone Recoveries . | . . . . Exploration | -11 -10 -10 -10 ------------- Run | Jun Mat Min Exi Turns Passed 3923 | 3 1650 957 1313 Spaces Moved 1375 | 1 433 552 389 Core 1 | . . . 1 Treads 1328 | 1 433 552 342 Legs 46 | . . . 46 Wheels . | . . . . Hover . | . . . . Flight . | . . . . Fastest Speed 120 | 160 160 160 120 Average Speed 202 | 160 173 160 295 Slowest Speed 3550 | 160 240 160 3550 Overloaded Moves . | . . . . Propulsion Burnouts . | . . . . Robots Hopped . | . . . . Cave-ins Triggered . | . . . . Exploration Rate (%) 59 | 1 78 98 60 Regions Visited 3 Branch Regions 2 Pre-discovered Areas 3 | . . 2 1 Known Exits Taken . | . . . . Unknown Exits Taken 3 | 1 1 1 . Scrap Searched 2 | . . 2 . Spaces Dug . | . . . . Terrain Destroyed 5 | . . . 5 Melee . | . . . . Projectile . | . . . . AOE 5 | . . . 5 Terrain Rammed . | . . . . Walls Destroyed . | . . . . Machines Disabled . | . . . . Actions | -11 -10 -10 -10 --------- Run | Jun Mat Min Exi Total 2381 | 2 1282 624 473 Wait 859 | . 781 72 6 Move 1372 | . 432 551 389 Hop . | . . . . Pick Up 33 | . 13 . 20 Fast Attach 8 | . 4 . 4 Attach 6 | . . . 6 Detach 2 | . 2 . . Swap 10 | 2 6 . 2 Drop 16 | . 10 . 6 Fire 75 | . 34 1 40 Melee . | . . . . Ram . | . . . . Kick . | . . . . Crush . | . . . . Escape Stasis . | . . . . Rewire . | . . . . Trap . | . . . . Miscellaneous . | . . . . Route ------- -11/Junkyard -10/Materials (discovered 4 exits: [*Mat x2] / [*Min x2]) -10/Mines (discovered 3 exits: [*Mat x2] / *Exi) -10/Exiles History --------- Turn | Location | Event 4 | -11/Junkyard | Discovered new exit (range 0) 4 | -11/Junkyard | Entered Materials 311 | -10/Materials | Build established: Mutant 936 | -10/Materials | Discovered new exit (range 16) 1027 | -10/Materials | Discovered new exit (range 3) 1244 | -10/Materials | Discovered new exit (range 7) 1379 | -10/Materials | Discovered new exit (range 16) 1517 | -10/Materials | Central database locked down 1654 | -10/Materials | Entered Mines 1745 | -10/Mines | Learned Materials security intel 1776 | -10/Mines | Learned location of Storage (-7) 1862 | -10/Mines | Found a hidden stash of uninstalled traps 2104 | -10/Mines | Deemed a non-threat by the Exiles lab entrance 2295 | -10/Mines | Discovered new exit (range 9) 2432 | -10/Mines | Discovered new exit (range 9) 2603 | -10/Mines | Discovered new exit (range 5) 2611 | -10/Mines | Entered Exiles 2611 | -10/Exiles | Accompanied by 1 ally 2641 | -10/Exiles | Led the pair of lost Derelicts to a safe place 2656 | -10/Exiles | Met 8R-AWN 2679 | -10/Exiles | Met EX-HEX 2759 | -10/Exiles | Met EX-DEC 2801 | -10/Exiles | Visited The Gauntlet 2887 | -10/Exiles | Learned location of Zion (-7) 3264 | -10/Exiles | Build established: Hauler-Mutant 3683 | -10/Exiles | Attacked by the Exiles 3755 | -10/Exiles | Core integrity fell below 50% 3772 | -10/Exiles | Lost 5 parts (1p3n1w) 3810 | -10/Exiles | Core integrity fell below 20% 3810 | -10/Exiles | Destroyed 8R-AWN 3861 | -10/Exiles | Found Prototype Processor 3924 | -10/Exiles | Destroyed by DAS Turret with DAS Cannon Last Messages --------------- 03800_ Critical hit (Destroy). 03800_ Assault Rifle destroyed. 03800_ Penetrated by HV Slug. 03805_ Critical hit (Destroy). 03805_ Assault Rifle destroyed. 03805_ Penetrated by HV Slug. 03810_ 8R-AWN destroyed. 03848_ Acquired Prototype Leg. 03848_ Identified Adv. Myomer Leg. 03856_ Acquired Adv. Myomer Leg. 03861_ Acquired Prototype Processor. 03862_ Acquired 118 matter. 03865_ Dropped Humpback. 03865_ Extracted 85 matter. 03869_ Acquired Hcp. Storage Unit. 03874_ Acquired Core Shielding. 03876_ Acquired Hrd. Light Armor Plating. 03882_ Acquired Prototype Processor. 03883_ Extracted 20 matter. 03884_ Acquired Lrg. Matter Pod. Map ----- +----------------------------------------------------+ | ?????????????? ""???????????????????????????????? | | ##???????????? "????????????????????????????????? | | ##??????????? #????????????????????????????????? | | ######???### ###??????????????????????????????? | | """#####X# #"###"??"?"??????????????????????? | | """""" " "????????????###?######? | | "" """ " ????? #####"""" """"# | | " " ??? " """ """" | | # ? "" " | | ### ? " "" | | ??## | | ???## " | | ????##" ?? | | ?????#""" ""???" | | ????##" ##??????" | | ????#"" ""##????????#""" | | ????#""" """##??????????#""" | | ???#""" """##???????????#"""" | | ???#""" ""#???????????## | | ???#"" ########??####"""" | | ???#""" ##aaa####""" | | ???#"" """" | | ???##"" | | ????#"""" % % | | ????## " | | ?????#" @" "" "" | | ?????#"""" ""## ##""" " " ""# | | ?????#"" ""#### ######""" """## | | ?????#" """"##??# #????###""""### # | | ?????#""" """#??## ####???######?##### | | ?????## ""##??#! "!#??????????????? | | ??????#"" """##???#" !#??????????????? | | ??????##""" ##????#" "#??????????????? | | ???????##"""" ##?????# ""!"#??????????????? | | ????????### #??????########??????????????? | | ??????????##### ##????????????????????????????? | | ??????????????## #?????????????????????????????? | | ???????????????# #?????????????????????????????? | | ???????????????# #?????????????????????????????? | | ???????????????# #?????????????????????????????? | | ???????????????# #?????????????????????????????? | | ???????????????# #?????????????????????????????? | | ???????????????# #?????????????????????????????? | | ???????????????# #?????????????????????????????? | | ???????????????# #?????????????????????????????? | | ???????????????# #?????????????????????????????? | | ?????##"""###### ########??????????????????????? | | ?????"" """""" """""""#??????????????????????? | | ????"" "#"" "??????????????????? | | ??? " "??????????????????? | +----------------------------------------------------+ Best States ------------- Heat Dissipation 25 Energy Generation 12 Energy Capacity 265 Matter Stores 300 Matter Capacity 300 Sight Range 16 Terrain Scan Density 10 Armor Coverage 150 Core Shielding 20 Evasion (%) 55 Recoil Reduction 2 Item Schematics ----------------- None Robot Schematics ------------------ None Fabricated ------------ Nothing Alien Tech Used ----------------- None Achievements -------------- None Challenges ------------ None Game ------ Seed IonicExperimentalChainsword Manual? 0 Play Time 00:17:06 Cumulative 30.7 hours Start 2023.06.29 @ 20:07:26 End 2023.06.29 @ 20:30:54 Sessions 1 Manual Loads 0 Difficulty Rogue Special Mode None Game No. 34 Rogue 34 Adventurer 0 Explorer 0 Win Type - Total 0 Types 0/0/0/0/0/0/0/0/0 Lore% 17 Gallery% 23 Achievement% 51 Wizard Run 0 Options --------- ASCII 1 Keyboard 1 Movement Arrows Keybinds 0 Fullscreen 2 Font 24/Smallcaps Map View 76x50 Tactical HUD 1 Map Filters NONE Filters NONE Steam 1 RUN: 29c3f4ff-16ea-4d88-b079-a2092c95cda3